Cogmind - Beta 17 @@@ ROGUE MODE // 2026.08.02 @ 19:15:34 Player: gorb Result: Destroyed by G-34 Mercenary with Small Laser Performance ------------- Evolutions (1) 500 Regions Visited (2) 400 Robots Destroyed (8) 40 Value Destroyed (134) 134 Prototype IDs (1) 20 Alien Tech Used (0) 0 Bonus (0) 0 TOTAL SCORE: 1094 Bonus ------- None Cogmind --------- Core Integrity 0/400 Matter 300/300 Energy 100/100 System Corruption 4% Temperature Cool (15) Movement Core (100) Ox1 Location -9/Materials Parts ------- > --- POWER (1) -------- (None) > --- PROPULSION (3) --- (None) > --- UTILITY (3) ------ Small Storage Unit Signal Interpreter > --- WEAPON (2) ------- (None) > --- INVENTORY (8) ---- Ion Engine Light Ion Engine Cooled Ion Engine ECM Suite Light Assault Rifle Light Assault Rifle Datajack Peak State ------------ > --- POWER ------------ Cooled Ion Engine > --- PROPULSION ------- Flight Unit Flight Unit Flight Unit > --- UTILITY ---------- Small Storage Unit Signal Interpreter Transport Network Coupler > --- WEAPON ----------- Light Assault Rifle > --- INVENTORY -------- Ion Engine Light Ion Engine ECM Suite Light Assault Rifle Datajack [Rating: 10] Favorites ----------- Power Light Ion Engine Engine Light Ion Engine Propulsion Flight Unit Wheel Wheel Flight Unit Flight Unit Utility Small Storage Unit Storage Small Storage Unit Processor Transport Network Coupler Weapon Light Assault Rifle Energy Gun Medium Laser Ballistic Gun Light Assault Rifle Build | -11 -10 -9 ------- Run | Yrd Mat Mat Slots Evolved 2 | . . 2 Power . | . . . Propulsion 1 | . . 1 Utility 1 | . . 1 Weapon . | . . . Parts Attached 22 | 7 7 8 Power 4 | 1 1 2 Engine 4 | 1 1 2 Core . | . . . Reactor . | . . . Propulsion 9 | 2 3 4 Treads . | . . . Leg . | . . . Wheel 2 | 2 . . Hover . | . . . Flight 7 | . 3 4 Utility 3 | 1 1 1 Device . | . . . Storage 1 | 1 . . Processor 2 | . 1 1 Hackware . | . . . Protection . | . . . Artifact . | . . . Weapon 6 | 3 2 1 Energy Gun 3 | 3 . . Energy Cannon . | . . . Ballistic Gun 3 | . 2 1 Ballistic Cannon . | . . . Launcher . | . . . Special Weapon . | . . . Impact Weapon . | . . . Slashing Weapon . | . . . Piercing Weapon . | . . . Special Melee Weapon . | . . . Unidentified Prototypes 1 | . . 1 Parts Lost 8 | . 1 7 Power 1 | . . 1 Propulsion 5 | . 1 4 Utility 1 | . . 1 Weapon 1 | . . 1 Highest Loss Streak 3 | . 1 3 To Critical Strikes . | . . . Average Backups 4 | 2 3 5 Power 1 | . 1 1 Propulsion . | . . . Utility . | . . 1 Weapon 1 | 1 1 1 Tool/Special . | . . . Unused Backups 4 | . 1 3 Power 1 | . 1 . Propulsion . | . . . Utility 1 | . . 1 Weapon 1 | . . 1 Tool/Special 1 | . . 1 Average Slot Usage (%) 78 | . 80 74 Engine 11 | . 14 8 Wheel 8 | . 14 . Flight 18 | . 12 26 Storage 12 | . 14 11 Processor 12 | . 6 21 Energy Gun 6 | . 10 . Ballistic Gun 7 | . 7 8 Peak Build Rating 10 | 6 7 10 Average Rating 5 | 3 5 6 On Entrance 3 | . 6 5 Avg Prop Armor Cover (%) . | . . . Naked Turns . | . . . Heaviest Build 14 | 14 14 9 Greatest Support 26 | 26 26 12 Greatest Overweight (x) 3 | 2 3 1 Average Overweight (x) . | . . . Largest Inventory Capacity 8 | 8 8 8 Average Capacity 7 | 6 8 8 Most Carried 8 | 5 8 7 Average Carried 4 | 2 3 5 Final Capacity 8 | 8 8 8 Final Carried 8 | 2 8 7 Class Distribution -------------------- 68% | Mutant 31% | Scavenger-Mutant Dominant Class ---------------- Mutant | -10/Materials Mutant | -9/Materials Resources | -11 -10 -9 ----------- Run | Yrd Mat Mat Matter Collected 517 | 212 169 136 Remotely . | . . . Salvage Created 170 | . 111 59 Parts 11 | . 7 4 Haulers Intercepted . | . . . Recyclers Shooed . | . . . Parts Field Recycled . | . . . Retrieved Matter . | . . . Parts Self-Destructed . | . . . Prevented . | . . . Parts Restored . | . . . Kills | -11 -10 -9 ------- Run | Yrd Mat Mat Combat Hostiles Destroyed 7 | . 3 4 Guns 7 | . 3 4 Classes Destroyed 3 | . 3 . Operator 1 | . 1 . Swarmer 5 | . 1 4 Grunt 2 | . 2 . Best Kill Streak 4 | . 2 4 Combat Bots Only 4 | . 2 4 Max Kills in Single Turn 1 | . 1 1 Gunslinging . | . . . Exploded . | . . . Melee . | . . . Uniques/NPCs Destroyed . | . . . Combat | -11 -10 -9 -------- Run | Yrd Mat Mat Hostile Shots Fired 113 | . 26 87 Missed 36 | . 6 30 Hits 77 | . 20 57 Melee 4 | . . 4 Projectile 73 | . 20 53 Damage Taken 909 | . 198 711 Core 447 | . 45 402 Absorbed by Shields . | . . . Core Remaining (%) 91 | 100 82 . Volleys Fired 40 | . 18 22 Largest 2 | . 2 2 Hottest 40 | . 40 40 Shots Fired 70 | . 36 34 Gun 70 | . 36 34 Cannon . | . . . Launcher . | . . . Special . | . . . Kinetic 70 | . 36 34 Thermal . | . . . Explosive . | . . . Electromagnetic . | . . . Robot Hit Streak 8 | . 8 4 Robot Miss Streak 3 | . 3 2 Penetration Max . | . . . Secondary Targets . | . . . Shots Hit Robots 47 | . 26 21 Core Hits 15 | . 7 8 Critical Kills . | . . . Critical Parts Destroyed 1 | . . 1 Critical Strikes 1 | . . 1 Destroy 1 | . . 1 Melee Attacks . | . . . Impact . | . . . Slashing . | . . . Piercing . | . . . Sneak Attacks . | . . . Combat Hostiles . | . . . Follow-up Attacks . | . . . Damage Inflicted 377 | . 222 155 Guns 360 | . 208 152 Cannons . | . . . Explosions . | . . . Melee . | . . . Ramming 17 | . 14 3 Kinetic 360 | . 208 152 Thermal . | . . . Explosive . | . . . Electromagnetic . | . . . Impact . | . . . Slashing . | . . . Piercing . | . . . Highest Corruption 4 | . . 4 Average Corruption 4 | . . 4 Corruption Purged . | . . . Corruption Blocked . | . . . Effects 1 | . . 1 Message Errors 1 | . . 1 Overload Shots . | . . . Overflow Damage 4 | . 4 . Projectiles . | . . . Explosions . | . . . Melee 4 | . 4 . Knockbacks 1 | . 1 . Impact 1 | . 1 . Kinetic . | . . . Secondary . | . . . Self-Inflicted Damage 8 | . 7 1 Shots . | . . . Rammed 2 | . 1 1 Targets Rammed 2 | . 1 1 Kicked . | . . . Crushed . | . . . Highest Temperature 20 | . 20 . Average Temperature 7 | . 7 . Received Heat Transfer 234 | . 72 162 Siege Activations . | . . . Martial Activations . | . . . Shielding Activations . | . . . Robots Disrupted . | . . . Combat Hostiles . | . . . Robots Corrupted 1 | . 1 . Combat Hostiles . | . . . Parts Fried 2 | . 2 . Impact Corruptions 1 | . 1 . Robots Melted . | . . . Combat Hostiles . | . . . Parts Melted . | . . . Heat Transferred . | . . . Parts Sabotaged . | . . . Parts Stolen . | . . . Parts Stripped . | . . . Power Chain Reactions . | . . . Alert | -11 -10 -9 ------- Run | Yrd Mat Mat Maximum Alert Level . | . . . Low Security (%) 100 | 100 100 100 Level 1 . | . . . Level 2 . | . . . Level 3 . | . . . Level 4 . | . . . Level 5 . | . . . High Security . | . . . Max Security . | . . . Peak Influence 60 | . 60 50 Initial 16 | . . 16 Average 17 | . 13 26 Influence Increases 302 | . 145 157 Destroy 0b10 Robot/C 140 | . 60 80 Destroy 0b10 Robot/NC 5 | . 5 . Destroy Leader 30 | . 20 10 Successful Hack 7 | . . 7 Partial Spotted 60 | . 30 30 Lose Combat Pursuer 60 | . 30 30 Influence Decreases 302 | . 105 197 Entered New Map 24 | . . 24 Time Decay 208 | . 95 113 Lost Part 70 | . 10 60 Squads Dispatched 3 | . 3 . Investigation 1 | . 1 . Extermination . | . . . Reinforcement 2 | . 2 . Assault . | . . . Garrison . | . . . Intercept . | . . . Searches Triggered . | . . . Construction Impeded . | . . . Haulers Reinforced . | . . . Active Scanning Responses . | . . . Cargo Convoy Interrupts . | . . . Stealth | -11 -10 -9 --------- Run | Yrd Mat Mat Distress Signals 3 | . 1 2 Communications Jammed . | . . . Distress Signals . | . . . Times Spotted 23 | . 6 17 Peak Tracking Total 14 | . 3 14 Tactical Retreats 2 | . 1 1 Traps | -11 -10 -9 ------- Run | Yrd Mat Mat Traps Triggered . | . . . Indirectly . | . . . Trap Hack Attempts . | . . . Triggered . | . . . Disarmed . | . . . Reprogrammed . | . . . Reused . | . . . Traps Extracted . | . . . Installed . | . . . Triggered . | . . . Machines | -11 -10 -9 ---------- Run | Yrd Mat Mat Machines Disabled . | . . . Max in Single Turn . | . . . Machines Repaired . | . . . Machines Dismantled . | . . . Machines Sabotaged . | . . . Overloaded Fab Kills . | . . . Hacking | -11 -10 -9 --------- Run | Yrd Mat Mat Machines Accessed 4 | . 3 1 Terminals 4 | . 3 1 Fabricators . | . . . Repair Stations . | . . . Recycling Units . | . . . Scanalyzers . | . . . Garrison Access . | . . . Total Hacks 12 | . 10 2 Successful 4 | . 2 2 Failed 8 | . 8 . Catastrophic 2 | . 2 . Database Lockouts . | . . . Manual 1 | . 1 . Terminals 12 | . 10 2 Fabricators . | . . . Repair Stations . | . . . Recycling Units . | . . . Scanalyzers . | . . . Garrison Access . | . . . Terminal Hacks 4 | . 2 2 Record 1 | . 1 . Alert Level 1 | . . 1 Assault Status 1 | . . 1 Recall Reinforcements 1 | . 1 . Fabricator Hacks . | . . . Repair Station Hacks . | . . . Recycling Unit Hacks . | . . . Scanalyzer . | . . . Garrison Access Hacks . | . . . Unauthorized Hacks . | . . . Terminals . | . . . Fabricators . | . . . Repair Stations . | . . . Recycling Units . | . . . Scanalyzers . | . . . Garrison Access . | . . . Data Cores Recovered . | . . . Used . | . . . Hacking Detections 3 | . 2 1 Full Trace Events 2 | . 2 . Feedback Events . | . . . Feedback Blocked . | . . . Robot Schematics Acquired . | . . . Robots Built . | . . . Authchips . | . . . Time . | . . . Total Robot Build Rating . | . . . Part Schematics Acquired . | . . . Parts Built . | . . . Authchips . | . . . Time . | . . . Total Part Build Rating . | . . . Part Studies Acquired . | . . . Parts Repaired . | . . . Time . | . . . Parts Recycled . | . . . Recycled Matter . | . . . Retrieved Matter . | . . . Retrieved Components . | . . . Parts Scanalyzed . | . . . Part Schematics Acquired . | . . . Parts Damaged . | . . . Bothacking | -11 -10 -9 ------------ Run | Yrd Mat Mat Used RIF Installer . | . . . Robots Hacked . | . . . Non-combat . | . . . Combat . | . . . Robot Hacks Applied . | . . . Relay Couplers Released . | . . . Fabnet Peak Effective % . | . . . Robots Rewired . | . . . Allies Hacked . | . . . Hacks Repelled . | . . . Allies | -11 -10 -9 -------- Run | Yrd Mat Mat Total Allies . | . . . Largest Group . | . . . Highest-Rated Group . | . . . Highest-Rated Ally . | . . . Total Orders . | . . . Ally Attacks . | . . . Total Damage . | . . . Kills . | . . . Allies Corrupted . | . . . Allies Melted . | . . . Intel | -11 -10 -9 ------- Run | Yrd Mat Mat Active Infowar (turns) 395 | . 157 238 T.N.C. 395 | . 157 238 Robot Analysis Total . | . . . Derelict Logs Recovered . | . . . Drone Launches . | . . . Drone Recoveries . | . . . Exploration | -11 -10 -9 ------------- Run | Yrd Mat Mat Turns Passed 623 | 41 335 247 Spaces Moved 722 | 36 305 381 Core 28 | 16 1 11 Treads . | . . . Legs . | . . . Wheels 162 | 20 142 . Hover . | . . . Flight 532 | . 162 370 Fastest Speed 34 | 50 37 34 Average Speed 51 | 75 63 39 Slowest Speed 200 | 150 200 120 Overloaded Moves . | . . . Propulsion Burnouts . | . . . Robots Hopped . | . . . Potential Cave-ins . | . . . Cave-ins Triggered . | . . . Exploration Rate (%) 31 | 3 52 38 Regions Visited 2 Branch Regions . Pre-discovered Areas . | . . . Known Exits Taken . | . . . Unknown Exits Taken 2 | 1 1 . Scrap Searched . | . . . Spaces Dug . | . . . Terrain Destroyed . | . . . Melee . | . . . Projectile . | . . . AOE . | . . . Terrain Rammed . | . . . Walls Destroyed . | . . . Machines Disabled . | . . . Actions | -11 -10 -9 --------- Run | Yrd Mat Mat Total 920 | 48 421 451 Wait 90 | . 65 25 Move 720 | 35 304 381 Hop . | . . . Pick Up 23 | 5 12 6 Fast Attach 3 | 3 . . Attach 22 | 4 9 9 Detach 8 | 1 5 2 Swap 3 | . 1 2 Drop 9 | . 6 3 Fire 40 | . 18 22 Melee . | . . . Ram 2 | . 1 1 Kick . | . . . Crush . | . . . Escape Stasis . | . . . Rewire . | . . . Trap . | . . . Miscellaneous . | . . . Route ------- -11/Scrapyard -10/Materials (discovered 3 exits: *Mat / [*Min] / [*Sub]) -9/Materials History --------- Turn | Location | Event 5 | -11/Scrapyard | Discovered new exit (range 15) 42 | -11/Scrapyard | Entered Materials 43 | -10/Materials | Met a group of wandering Federalists 158 | -10/Materials | Discovered new exit (range 7) 307 | -10/Materials | Discovered new exit (range 8) 316 | -10/Materials | Discovered new exit (range 16) 377 | -10/Materials | Entered another Materials area 377 | -9/Materials | Evolved 2 slots: Propulsion x1, Utility x1 471 | -9/Materials | Lost 3 parts (1p1n1w) 616 | -9/Materials | Core integrity fell below 50% 620 | -9/Materials | Core integrity fell below 20% 624 | -9/Materials | Destroyed by G-34 Mercenary with Small Laser Last Messages --------------- K-01 Serf collects debris. Acquired Flight Unit. Flight Unit destroyed. W-16 Scout sends out distress signal. Flight Unit destroyed. K-01 Serf cleans the Terminal. K-01 Serf cleans the Fusion Modulator. Slammed into K-01 Serf. Dropped Flight Unit. U-05 Engineer destroyed. K-01 Serf collects debris. K-01 Serf destroyed. K-01 Serf collects debris. U-05 Engineer destroyed. Transport Network Coupler destroyed. System corrupted by crushing effect (+4). R-06 Scavenger collects Welding Torch. 6#/UVO>7MJEUPAVNHI,1DHL26#J5TBX P Knocked back. R-06 Scavenger collects Lgt. Ion Engine. Map ----- +----------------------------------------------------+ | ??????????????????????????????????????????????? | | ?????????##+######???????????????????????????????? | | ?????????# ??????????????????????????????## | | ?????????# #?????????????????????????????"" | | ?????????# #????????????????????????????""" | | ?????????# #???????????????????????????"""" | | ?????????# #??????????????????????????""""" | | ?????????# #????????????????????????# """"" | | ??????????? #????????????????????????# | | ?????#??????? #????????????????????????# ! | | ???### ##?????? #????????????????????????# | | #### ########+##???????????????????????####### | | ##########????????????????????? | | ^ # """ #????????????????????? | | """ # "T" #???????????###??????? | | ?### ### "T" # #?????????###T######## | | ???###+????# # ! #?????????# | | ???????????# # #?????????# | | ???????????# %+ """ #?????????# !![ | | ???????????# # """ #?????????# !! | | ???????????# ==# """ #?????????# ![ | | ???????????# !![[# #?????????# | | ???????????# !%[[##########?????????# | | ???????????# =*%#################### "T" | | ???????????# !g =% r """ | | ???????????# b @=! | | ???????????# ! ! g | | ???????????# Y Y | | ???????????# ##+############### ######## | | ???????????#######+### ????????????# #??????? | | ??????????????# # #??????????# #??????? | | ??????????????# # #?????###### #??????? | | ??????????????# """ # #?????# #??????? | | ??????????????# """ # #?????# #### #??????? | | ??????????????# """ # #??????????# #??????? | | ??????????????# # #??????????# #??????? | | ??????????????######## #??????????# #??????? | | ?????????????????????# #??????????# ###+#### | | ?????????????????????# #??????????# | | ?????????????????????# [ #??????????# | | ?????????????????????# #??????????# | | ??????????????????????######??????????##### ## | | ??????????????????????????????????????????# #? | | ??????????????????????????????????????????# ## | | ??????????????????????????????????????????# # | | ??????????????????????????????????????????# + | | ??????????????????????????????????????????# # | | ??????????????????????????????????????????#### # | | ??????????????????????????????????????######## # | | ??????????????????????????????????????# # # | +----------------------------------------------------+ Best States ------------- Heat Dissipation 28 Energy Generation 10 Energy Capacity 250 Matter Stores 300 Matter Capacity 300 Sight Range 16 Terrain Scan Density 10 Evasion (%) 63 Item Schematics ----------------- None Robot Schematics ------------------ None Fabricated ------------ Nothing Repaired ---------- Nothing Studied --------- None Alien Tech Used ----------------- None Achievements -------------- None Challenges ------------ None Game ------ Seed NavigationZioniteFirepult Manual? 0 Play Time 00:11:34 Cumulative 54.7 hours Start 2026.08.02 @ 19:04:33 End 2026.08.02 @ 19:15:34 Sessions 1 Manual Loads 0 Difficulty Rogue Special Mode None Game No. 95 Rogue 93 Adventurer 0 Explorer 2 Win Type - Total 0 Types 0/0/0/0/0/0/0/0/0/0 Lore% 27 Gallery% 30 Achievement% 22 Wizard Run 0 Options --------- Layout 1 ASCII 0 Keyboard 0 Movement Mouse Keybinds 0 Fullscreen 1 Font 24/Smallcaps Map View 50x35 Zoom Use 0% Tactical HUD 0 Map Filters NONE Filters NONE Steam 1 RUN: dfb6ebd8-9bd3-45f2-82b4-01ac3e0cda84